fUST/lending_fUST_20251021
["ID","MTS","AMOUNT","RATE_DAILY","PERIOD"]
[391956598,1761029435717,-154.160189,0.00032,30]
[391956599,1761029435727,-154.160189,0.00032,30]
[391956600,1761029435736,-154.160181,0.00032,30]
[391956601,1761029435745,-38010.97397524,0.00032,25]
[391956602,1761029435756,-151.0,0.00032,15]
[391956603,1761029435766,-151.0,0.00032,15]
[391956604,1761029435775,-156.152801,0.00032042,2]
[391956605,1761029435785,-151.100433,0.00032042,2]
[391956606,1761029435795,-168.63598432,0.00032137,7]
[391956607,1761029435804,-158.46756255,0.00032192,30]
[391956608,1761029435814,-158.46756255,0.00032192,30]
[391956609,1761029435824,-600.0,0.00032223,2]
[391956610,1761029435833,-155.0,0.00032399,2]
[391956611,1761029435851,-151.0,0.000324,10]
[391956612,1761029435861,-188.19366753,0.000324,2]
[391956613,1761029435870,-353.37090647,0.00032415,2]
[391956614,1761029435880,-6497.8044297,0.00032459,2]
[391956615,1761029435890,-500.0,0.00032473,2]
[391956616,1761029435900,-503.36300446,0.00032473,5]
[391956617,1761029435910,-522.50149852,0.00032473,5]
[391956618,1761029435920,-250.85868638,0.00032473,5]
[391956619,1761029435929,-500.0,0.00032473,5]
[391956620,1761029435938,-500.0,0.00032473,4]
[391956621,1761029435947,-500.0,0.00032473,5]
[391956622,1761029435958,-500.0,0.00032473,5]
[391956623,1761029435967,-500.0,0.00032473,5]
[391956624,1761029435977,-500.0,0.00032473,5]
[391956625,1761029435986,-158.43313369,0.00032473,2]
[391956626,1761029435995,-543.48192521,0.00032473,2]
[391956627,1761029436004,-1400.0,0.0003248,7]
[391956628,1761029436013,-254.26083572,0.0003248,3]
[391956629,1761029436023,-3370.19449076,0.00032485,2]
[391956630,1761029436033,-751398.40056315,0.00032495,4]
[391956631,1761029436042,-700.0,0.00032495,2]
[391956632,1761029436051,-2000.0,0.000325,10]
[391956633,1761029436061,-200.0,0.000325,14]
[391956634,1761029436071,-425.13004054,0.00032501,2]
[391956635,1761029436084,-600.0,0.00032559,2]
[391956636,1761029436095,-500.0,0.0003257,5]
[391956637,1761029436104,-465.52130345,0.0003257,30]
[391956638,1761029436113,-158.46756255,0.00032603,30]
[391956639,1761029436122,-500.0,0.00032637,7]
[391956640,1761029436131,-60434.3516279,0.000327,10]
[391956677,1761029437966,-488.8323756,0.000327,10]
[391956680,1761029437977,-11306.25,0.000327,8]
[391956682,1761029437986,-156.152801,0.00032755,10]
[391956684,1761029437995,-151.100433,0.00032755,10]
[391956686,1761029438006,-4858.64852986,0.00032876,2]
[391956687,1761029438016,-1000.0,0.00032876,5]
[391956689,1761029438026,-1000.0,0.00032876,5]
[391956691,1761029438036,-1000.0,0.00032876,5]
[391956693,1761029438045,-529.6675565,0.00032876,5]
[391956695,1761029438055,-514.04331648,0.00032876,15]
[391956697,1761029438065,-2999.0,0.00032876,120]
[391956700,1761029438075,-151.0,0.00032877,30]
[391956702,1761029438084,-151.0,0.00032877,30]
[391956704,1761029438094,-151.0,0.00032877,30]
[391956706,1761029438103,-151.0,0.00032877,30]
[391956708,1761029438113,-151.0,0.00032877,30]
[391956710,1761029438123,-151.0,0.00032877,30]
[391956712,1761029438132,-151.0,0.00032877,30]
[391956714,1761029438141,-151.0,0.00032877,30]
[391956716,1761029438151,-151.0,0.00032877,30]
[391956718,1761029438161,-151.0,0.00032877,30]
[391956720,1761029438171,-151.0,0.00032877,30]
[391956722,1761029438181,-151.0,0.00032877,30]
[391956744,1761029438374,-151.0,0.00032877,30]
[391956746,1761029438384,-151.0,0.00032877,30]
[391956748,1761029438394,-151.0,0.00032877,30]
[391956750,1761029438404,-151.0,0.00032877,30]
[391956752,1761029438413,-191.36516,0.00032877,30]
[391956754,1761029438423,-151.0,0.00032877,30]
[391956755,1761029438432,-153.66928,0.00032877,30]
[391956757,1761029438442,-600.0,0.00032895,2]
[391956759,1761029438452,-178.12267978,0.000329,120]
[391956761,1761029438461,-2598.66671596,0.000329,120]
[391956764,1761029438471,-725.07104009,0.000329,120]
[391956766,1761029438481,-736.46690277,0.000329,120]
[391956768,1761029438490,-197.67694813,0.000329,120]
[391956770,1761029438499,-181.09763267,0.000329,120]
[391956772,1761029438510,-1235.01681378,0.000329,2]
[391956774,1761029438520,-1500.0,0.0003297,28]
[391956776,1761029438530,-1500.0,0.0003297,28]
[391956777,1761029438539,-1500.0,0.0003297,28]
[391956780,1761029438549,-1500.0,0.0003297,28]
[391956782,1761029438558,-1500.0,0.0003297,28]
[391956784,1761029438567,-1500.0,0.0003297,28]
[391956785,1761029438577,-1500.0,0.0003297,28]
[391956788,1761029438587,-1500.0,0.0003297,28]
[391956790,1761029438596,-1500.0,0.0003297,28]
[391956792,1761029438605,-1500.0,0.0003297,28]
[391956794,1761029438615,-1500.0,0.0003297,28]
[391956796,1761029438624,-1500.0,0.0003297,28]
[391956798,1761029438633,-1500.0,0.0003297,28]
[391956800,1761029438642,-876.3625,0.0003297,28]
[391956802,1761029438651,-150.0,0.00032973,5]
[391956804,1761029438660,-150.0,0.00032973,5]
[391956806,1761029438670,-1596679.44672363,0.00033,7]
[391956808,1761029438683,-74840.71698848,0.00033,7]
[391956810,1761029438693,-86190.448649,0.00033,6]
[391956812,1761029438703,-21637.698377,0.00033,5]
[391956814,1761029438716,-170.46549692,0.00033,120]
[391956816,1761029438725,-200.0,0.00033,14]
[391956818,1761029438735,-219737.64700775,0.00033,30]
[391956820,1761029438745,-156.152801,0.00033,7]
[391956821,1761029438756,-156.152801,0.00033,28]
[391956822,1761029438765,-151.100433,0.00033,28]
[391956823,1761029438775,-8808.98,0.00033,14]
[391956824,1761029438785,-500.0,0.00033,12]
[391956825,1761029438794,-373.61661579,0.00033,21]
[391956826,1761029438804,-500.0,0.00033,12]
[391956827,1761029438814,-611.41961782,0.00033021,2]
[391956828,1761029438824,-1000.0,0.00033021,5]
[391956829,1761029438834,-1000.0,0.00033021,5]
[391956830,1761029438843,-92624.19,0.00033058,14]
[391956831,1761029438853,-456.079117,0.00033165,2]
[391956832,1761029438863,-600.0,0.0003323,2]
[391956833,1761029438873,-500.0,0.0003324,20]
[391956834,1761029438883,-508.46719579,0.0003324,20]
[391956835,1761029438893,-1012.422918,0.0003326,8]
[391956836,1761029438903,-156.152801,0.00033263,7]
[391956837,1761029438914,-1000.0,0.0003328,8]
[391956838,1761029438923,-627.58341037,0.000333,3]
[391956839,1761029438933,-277.0,0.000333,7]
[391956840,1761029438943,-1000.0,0.000333,8]
[391956841,1761029438953,-250.0,0.000333,10]
[391956842,1761029438963,-8761.83866256,0.00033301,14]
[391956843,1761029438972,-1400.0,0.00033302,7]
[391956844,1761029438982,-250.0,0.00033304,2]
[391956845,1761029438993,-1000.0,0.0003332,8]
[391956846,1761029439002,-4559.12,0.00033325,30]
[391956847,1761029439012,-1177.335043,0.0003334,8]
[391956848,1761029439022,-1000.0,0.0003334,8]
[391956849,1761029439032,-632.0,0.00033358,2]
[391956850,1761029439042,-2164.0,0.00033358,2]
[391956851,1761029439052,-1000.0,0.0003336,8]
[391956852,1761029439061,-1000.0,0.0003336,8]
[391956853,1761029439071,-1000.0,0.0003338,8]
[391956854,1761029439081,-1000.0,0.0003338,8]
[391956855,1761029439091,-1000.0,0.000334,8]
[391956856,1761029439100,-1000.0,0.000334,8]
[391956857,1761029439108,-300.0,0.000334,12]
[391956858,1761029439116,-252.47,0.000334,12]
[391956859,1761029439125,-250.0,0.000334,10]
[391956860,1761029439133,-353.37090647,0.000334,2]
[391956861,1761029439141,-205.808469,0.000334,2]
[391956862,1761029439149,-1000.0,0.0003342,8]
[391956863,1761029439158,-1000.0,0.0003342,8]
[391956864,1761029439167,-12500.0,0.00033438,10]
[391956865,1761029439176,-1000.0,0.0003344,8]
[391956866,1761029439186,-1000.0,0.0003344,8]
[391956867,1761029439195,-6497.80442965,0.00033452,2]
[391956868,1761029439205,-1000.0,0.0003346,8]
[391956869,1761029439214,-1000.0,0.0003346,8]
[391956870,1761029439224,-25202.79021145,0.0003347,30]
[391956871,1761029439234,-500.71478119,0.00033473,5]
[391956872,1761029439243,-1000.0,0.0003348,8]
[391956873,1761029439252,-1000.0,0.0003348,8]
[391956874,1761029439263,-1168.737153,0.0003348,8]
[391956875,1761029439273,-990.0,0.000335,2]
[391956876,1761029439283,-990.0,0.000335,3]
[391956877,1761029439293,-3005.59802469,0.000335,7]
[391956878,1761029439305,-281.04,0.000335,7]
[391957277,1761029443386,-343.08476299,0.000275,2]
[391957480,1761029542086,160.0,0.00013699,2]
[391957481,1761029542404,200.0,0.00014247,2]
[391957482,1761029740818,-508.4549526,0.000265,2]
[391957483,1761029740860,-1925.35046684,0.000265,2]
[391957484,1761029740898,-300.0,0.00026579,2]
[391957485,1761029740938,-1699.62,0.0002658,10]
[391957486,1761029740979,-1822.29,0.0002658,10]
[391957487,1761029741020,-49830.0293619,0.0002658,2]
[391957488,1761029741060,-2437.80465102,0.0002658,2]
[391957489,1761029741100,-500.0,0.00026589,2]
[391957490,1761029741137,-617.58766427,0.00026589,2]
[391957491,1761029741176,-500.0,0.00026589,2]
[391957492,1761029741213,-500.0,0.00026589,2]
[391957493,1761029741251,-500.0,0.00026589,2]
[391957494,1761029741292,-607.90805517,0.00026589,2]
[391957495,1761029741333,-500.0,0.00026589,2]
[391957496,1761029742898,190.62,0.0002658,3]
[391957497,1761029751513,150.0,0.00014451,30]
[391957498,1761029751999,150.0,0.00015765,30]
[391957499,1761029752499,150.0,0.00017079,30]
[391957500,1761029752600,571.87,0.0002658,3]
[391957501,1761029752930,150.0,0.00018393,30]
[391957502,1761029753405,150.0,0.00019707,30]
[391957503,1761029753866,170.32,0.0002102,30]
[391957504,1761029754256,198.71,0.00022334,30]
[391957505,1761029754304,-98097.4008038,0.0002659,2]
[391957506,1761029754316,-12861.02412725,0.0002659,2]
[391957507,1761029754728,227.09,0.00023648,30]
[391957508,1761029782222,160.0,0.00013699,2]
[391957509,1761029782538,200.0,0.00014247,2]
[391957510,1761029828959,150.0,0.00017443,30]
[391957511,1761029829391,150.0,0.00019029,30]
[391957512,1761029829853,150.0,0.00020615,30]
[391957513,1761029830312,150.0,0.00022201,30]
[391957514,1761029830814,150.0,0.00023787,30]
[391957515,1761029901049,150.0,0.00022421,2]
[391957516,1761029906061,150.0,0.00017441,30]
[391957517,1761029906509,150.0,0.00019027,30]
[391957518,1761029906988,150.0,0.00020612,30]
[391957519,1761029907474,150.0,0.00022198,30]
[391957520,1761029982097,150.0,0.00014608,30]
[391957521,1761029982547,150.0,0.00015936,30]
[391957522,1761030052810,150.0,0.00016677,30]
[391957523,1761030097490,1299.0,0.00030136,120]
[391957524,1761030121992,150.0,0.00021517,2]
[391957525,1761030122432,150.0,0.00023473,2]
[391957526,1761030126956,150.0,0.00014044,30]
[391957527,1761030195370,150.0,0.00022397,2]
[391957528,1761030268546,150.0,0.00021509,2]
[391957529,1761030269704,150.0,0.00023464,2]
[391957530,1761030340010,150.0,0.00021503,2]
[391957531,1761030340435,150.0,0.00023458,2]
[391957532,1761030406753,150.0,0.00021503,2]
[391957533,1761030407207,150.0,0.00023458,2]
[391957534,1761030474389,150.0,0.00021502,2]
[391957535,1761030474836,150.0,0.00023457,2]
[391957542,1761030622012,-700.0,0.00033475,120]
[391957543,1761030622076,-50000.0,0.00033475,30]
[391957544,1761030622143,-20000.0,0.00033475,30]
[391957545,1761030622210,-178.4889073,0.00033475,60]
[391957546,1761030622277,-500.0,0.00033475,120]
[391957547,1761030622342,-500.0,0.00033475,120]
[391957548,1761030622402,-500.0,0.00033475,120]
[391957549,1761030622461,-500.0,0.00033475,120]
[391957550,1761030622518,-500.0,0.00033475,120]
[391957551,1761030622581,-500.0,0.00033475,120]
[391957552,1761030622640,-500.0,0.00033475,120]
[391957553,1761030622696,-400.67647797,0.00033475,120]
[391957554,1761030622752,-500.0,0.00033475,120]
[391957555,1761030622807,-500.0,0.00033475,120]
[391957556,1761030622862,-500.0,0.00033475,120]
[391957557,1761030622922,-500.0,0.00033475,120]
[391957558,1761030622981,-500.0,0.00033475,120]
[391957559,1761030623045,-500.0,0.00033475,120]
[391957560,1761030623108,-500.0,0.00033475,120]
[391957561,1761030623172,-500.0,0.00033475,120]
[391957562,1761030623232,-500.0,0.00033475,120]
[391957563,1761030623299,-500.0,0.00033475,120]
[391957564,1761030623360,-500.0,0.00033475,120]
[391957565,1761030623420,-500.0,0.00033475,120]
[391957566,1761030623480,-500.0,0.00033475,120]
[391957567,1761030623538,-500.0,0.00033475,120]
[391957568,1761030623598,-500.0,0.00033475,120]
[391957569,1761030623659,-258.36052489,0.00033475,120]
[391957570,1761030623721,-500.0,0.00033475,120]
[391957571,1761030623783,-500.0,0.00033475,120]
[391957572,1761030623846,-500.0,0.00033475,120]
[391957573,1761030623910,-500.0,0.00033475,120]
[391957574,1761030623974,-500.0,0.00033475,120]
[391957575,1761030624040,-500.0,0.00033475,120]
[391957576,1761030624110,-500.0,0.00033475,120]
[391957577,1761030624182,-500.0,0.00033475,120]
[391957578,1761030624253,-500.0,0.00033475,120]
[391957579,1761030624322,-500.0,0.00033475,120]
[391957580,1761030624387,-500.0,0.00033475,120]
[391957581,1761030624449,-500.0,0.00033475,120]
[391957582,1761030624510,-500.0,0.00033475,120]
[391957583,1761030624572,-393.12396773,0.00033475,120]
[391957584,1761030624631,-500.0,0.00033475,120]
[391957585,1761030624689,-500.0,0.00033475,120]
[391957586,1761030624746,-500.0,0.00033475,120]
[391957587,1761030624804,-500.0,0.00033475,120]
[391957588,1761030625138,-500.0,0.00033475,120]
[391957589,1761030625199,-500.0,0.00033475,120]
[391957590,1761030625260,-500.0,0.00033475,120]
[391957591,1761030625320,-500.0,0.00033475,120]
[391957592,1761030625380,-500.0,0.00033475,120]
[391957593,1761030625437,-500.0,0.00033475,120]
[391957594,1761030625495,-209.47039469,0.00033475,120]
[391957595,1761030625556,-500.0,0.00033475,120]
[391957596,1761030625615,-500.0,0.00033475,120]
[391957597,1761030625673,-500.0,0.00033475,120]
[391957598,1761030625732,-500.0,0.00033475,120]
[391957599,1761030625792,-500.0,0.00033475,120]
[391957600,1761030625850,-500.0,0.00033475,120]
[391957601,1761030625906,-500.0,0.00033475,120]
[391957602,1761030625964,-500.0,0.00033475,120]
[391957603,1761030626029,-500.0,0.00033475,120]
[391957604,1761030626096,-500.0,0.00033475,120]
[391957605,1761030626168,-500.0,0.00033475,120]
[391957606,1761030626232,-500.0,0.00033475,120]
[391957607,1761030626306,-225.95447773,0.00033475,120]
[391957608,1761030626377,-500.0,0.00033475,120]
[391957609,1761030626440,-500.0,0.00033475,120]
[391957610,1761030626501,-500.0,0.00033475,120]
[391957611,1761030626564,-500.0,0.00033475,120]
[391957612,1761030626627,-500.0,0.00033475,120]
[391957613,1761030626690,-500.0,0.00033475,120]
[391957614,1761030626753,-500.0,0.00033475,120]
[391957615,1761030626815,-500.0,0.00033475,120]
[391957616,1761030626878,-500.0,0.00033475,120]
[391957617,1761030626940,-500.0,0.00033475,120]
[391957618,1761030627002,-500.0,0.00033475,120]
[391957619,1761030627070,-500.0,0.00033475,120]
[391957620,1761030627140,-500.0,0.00033475,120]
[391957621,1761030627210,-500.0,0.00033475,120]
[391957622,1761030627279,-500.0,0.00033475,120]
[391957623,1761030627347,-580.0,0.00033475,120]
[391957624,1761030627410,-500.0,0.00033475,120]
[391957625,1761030627473,-500.0,0.00033475,120]
[391957626,1761030627535,-500.0,0.00033475,120]
[391957627,1761030627596,-500.0,0.00033475,120]
[391957628,1761030627660,-500.0,0.00033475,120]
[391957629,1761030627724,-500.0,0.00033475,120]
[391957630,1761030627787,-563.38031941,0.00033475,120]
[391957631,1761030627852,-500.0,0.00033475,120]
[391957632,1761030627916,-500.0,0.00033475,120]
[391957633,1761030627979,-500.0,0.00033475,120]
[391957634,1761030628041,-500.0,0.00033475,120]
[391957635,1761030628106,-500.0,0.00033475,120]
[391957636,1761030628177,-500.0,0.00033475,120]
[391957637,1761030628258,-500.0,0.00033475,120]
[391957638,1761030628328,-500.0,0.00033475,120]
[391957639,1761030628393,-500.0,0.00033475,120]
[391957640,1761030628457,-500.0,0.00033475,120]
[391957641,1761030628521,-500.0,0.00033475,120]
[391957642,1761030628581,-500.0,0.00033475,120]
[391957643,1761030628642,-482.42331847,0.00033475,120]
[391957644,1761030628704,-500.0,0.00033475,120]
[391957645,1761030628769,-500.0,0.00033475,120]
[391957646,1761030628832,-500.0,0.00033475,120]
[391957647,1761030628893,-500.0,0.00033475,120]
[391957648,1761030628955,-555.851995,0.00033475,120]
[391957649,1761030629015,-500.0,0.00033475,120]
[391957650,1761030629084,-470.52081424,0.00033475,120]
[391957651,1761030629152,-500.0,0.00033475,120]
[391957652,1761030629222,-500.0,0.00033475,120]
[391957653,1761030629288,-292.82261485,0.00033475,120]
[391957654,1761030629352,-500.0,0.00033475,120]
[391957655,1761030629413,-500.0,0.00033475,120]
[391957656,1761030629472,-500.0,0.00033475,120]
[391957657,1761030629532,-500.0,0.00033475,120]
[391957658,1761030629597,-500.0,0.00033475,120]
[391957659,1761030629659,-500.0,0.00033475,120]
[391957660,1761030629721,-500.0,0.00033475,120]
[391957661,1761030629783,-500.0,0.00033475,120]
[391957662,1761030629842,-500.0,0.00033475,120]
[391957663,1761030629901,-500.0,0.00033475,120]
[391957664,1761030629961,-500.0,0.00033475,120]
[391957665,1761030630022,-229.31846798,0.00033475,120]
[391957666,1761030630088,-500.0,0.00033475,120]
[391957667,1761030630151,-500.0,0.00033475,120]
[391957668,1761030630214,-500.0,0.00033475,120]
[391957669,1761030630278,-500.0,0.00033475,120]
[391957670,1761030630341,-500.0,0.00033475,120]
[391957671,1761030630403,-500.0,0.00033475,120]
[391957672,1761030630465,-500.0,0.00033475,120]
[391957673,1761030630521,-197.1874383,0.00033475,120]
[391957674,1761030630579,-500.0,0.00033475,120]
[391957675,1761030630638,-1248.54,0.00033475,120]
[391957676,1761030630697,-500.0,0.00033475,120]
[391957677,1761030630758,-1248.54,0.00033475,120]
[391957678,1761030630816,-500.0,0.00033475,120]
[391957679,1761030630878,-221.38670913,0.00033475,120]
[391957680,1761030630942,-1248.54,0.00033475,120]
[391957681,1761030631004,-1248.54,0.00033475,120]
[391957682,1761030631068,-1248.54,0.00033475,120]
[391957683,1761030631131,-1248.54,0.00033475,120]
[391957684,1761030631192,-1248.54,0.00033475,120]
[391957685,1761030631253,-1248.54,0.00033475,120]
[391957686,1761030631313,-500.0,0.00033475,120]
[391957687,1761030631377,-1248.54,0.00033475,120]
[391957688,1761030631437,-500.0,0.00033475,120]
[391957689,1761030631498,-1248.54,0.00033475,120]
[391957690,1761030631556,-500.0,0.00033475,120]
[391957692,1761030631796,-1248.54,0.00033475,120]
[391957693,1761030631856,-500.0,0.00033475,120]
[391957694,1761030631920,-1248.54,0.00033475,120]
[391957695,1761030631980,-1248.54,0.00033475,120]
[391957698,1761030632043,-1248.54,0.00033475,120]
[391957705,1761030632116,-1248.54,0.00033475,120]
[391957713,1761030632185,-1248.54,0.00033475,120]
[391957722,1761030632255,-1248.54,0.00033475,120]
[391957729,1761030632320,-1248.54,0.00033475,120]
[391957737,1761030632381,-1248.54,0.00033475,120]
[391957744,1761030632443,-1248.54,0.00033475,120]
[391957745,1761030632501,-1248.54,0.00033475,120]
[391957746,1761030632557,-1248.54,0.00033475,120]
[391957747,1761030632614,-1248.54,0.00033475,120]
[391957751,1761030632673,-1248.72491469,0.00033475,120]
[391957759,1761030632730,-500.0,0.00033475,120]
[391957766,1761030632788,-500.0,0.00033475,120]
[391957772,1761030632845,-500.0,0.00033475,120]
[391957778,1761030632901,-500.0,0.00033475,120]
[391957785,1761030632958,-500.0,0.00033475,120]
[391957792,1761030633015,-500.0,0.00033475,120]
[391957799,1761030633079,-280.40698201,0.00033475,120]
[391957806,1761030633145,-500.0,0.00033475,120]
[391957814,1761030633209,-468.96612986,0.00033475,120]
[391957819,1761030633273,-3043.52,0.00033475,120]
[391957821,1761030633335,-3043.52,0.00033475,120]
[391957822,1761030633393,-500.0,0.00033475,120]
[391957823,1761030633451,-3043.52,0.00033475,120]
[391957824,1761030633507,-500.0,0.00033475,120]
[391957825,1761030633563,-500.0,0.00033475,120]
[391957826,1761030633619,-3043.52,0.00033475,120]
[391957827,1761030633675,-500.0,0.00033475,120]
[391957828,1761030633733,-500.0,0.00033475,120]
[391957829,1761030633791,-3043.52,0.00033475,120]
[391957830,1761030633849,-500.0,0.00033475,120]
[391957831,1761030633908,-500.0,0.00033475,120]
[391957832,1761030633966,-629.02691455,0.00033475,120]
[391957833,1761030634025,-500.0,0.00033475,120]
[391957834,1761030634084,-3043.52,0.00033475,120]
[391957835,1761030634148,-560.0,0.00033475,120]
[391957836,1761030634217,-3043.52,0.00033475,120]
[391957837,1761030634281,-3043.52,0.00033475,120]
[391957838,1761030634343,-3043.52,0.00033475,120]
[391957839,1761030634406,-3043.52,0.00033475,120]
[391957840,1761030634467,-3043.52,0.00033475,120]
[391957841,1761030634528,-3043.52,0.00033475,120]
[391957842,1761030634591,-500.0,0.00033475,120]
[391957843,1761030634652,-3043.52,0.00033475,120]
[391957844,1761030634712,-500.0,0.00033475,120]
[391957845,1761030634773,-3043.52,0.00033475,120]
[391957846,1761030634832,-500.0,0.00033475,120]
[391957847,1761030634892,-3043.52,0.00033475,120]
[391957848,1761030634954,-500.0,0.00033475,120]
[391957849,1761030635021,-3043.52,0.00033475,120]
[391957850,1761030635087,-500.0,0.00033475,120]
[391957851,1761030635157,-3043.52,0.00033475,120]
[391957852,1761030635226,-500.0,0.00033475,120]
[391957853,1761030635295,-3043.52,0.00033475,120]
[391957854,1761030635365,-3043.52,0.00033475,120]
[391957855,1761030635427,-271.62645629,0.00033475,120]
[391957856,1761030635488,-3043.52,0.00033475,120]
[391957857,1761030635547,-500.0,0.00033475,120]
[391957858,1761030635607,-3043.52,0.00033475,120]
[391957859,1761030635665,-500.0,0.00033475,120]
[391957860,1761030635725,-3043.52,0.00033475,120]
[391957861,1761030635783,-500.0,0.00033475,120]
[391957862,1761030635843,-3043.52,0.00033475,120]
[391957863,1761030635904,-508.20989451,0.00033475,120]
[391957864,1761030635966,-3043.68145283,0.00033475,120]
[391957865,1761030636028,-1023.05,0.00033475,120]
[391957866,1761030636091,-1023.05,0.00033475,120]
[391957867,1761030636159,-1023.05,0.00033475,120]
[391957868,1761030636225,-1023.05,0.00033475,120]
[391957869,1761030636293,-1023.05,0.00033475,120]
[391957870,1761030636362,-1023.05,0.00033475,120]
[391957871,1761030636425,-469.51992703,0.00033475,120]
[391957872,1761030636491,-1023.05,0.00033475,120]
[391957873,1761030636553,-1023.05,0.00033475,120]
[391957874,1761030636616,-1023.05,0.00033475,120]
[391957875,1761030636681,-1023.05,0.00033475,120]
[391957876,1761030636740,-1023.05,0.00033475,120]
[391957877,1761030636799,-1023.05,0.00033475,120]
[391957878,1761030636859,-1023.05,0.00033475,120]
[391957879,1761030636918,-1023.05,0.00033475,120]
[391957880,1761030636988,-1023.05,0.00033475,120]
[391957881,1761030637054,-1023.05,0.00033475,120]
[391957882,1761030637121,-1023.05,0.00033475,120]
[391957883,1761030637183,-1023.05,0.00033475,120]
[391957884,1761030637246,-1023.05,0.00033475,120]
[391957885,1761030637307,-501.83736729,0.00033475,120]
[391957886,1761030637369,-1023.05,0.00033475,120]
[391957887,1761030637429,-1023.05,0.00033475,120]
[391957888,1761030637490,-1023.05,0.00033475,120]
[391957889,1761030637548,-1023.05,0.00033475,120]
[391957890,1761030637605,-1023.22362514,0.00033475,120]
[391957891,1761030637664,-500.0,0.00033475,120]
[391957893,1761030637724,-500.0,0.00033475,120]
[391957894,1761030637789,-500.0,0.00033475,120]
[391957895,1761030637850,-500.0,0.00033475,120]
[391957898,1761030637908,-500.0,0.00033475,120]
[391957899,1761030637968,-500.0,0.00033475,120]
[391957902,1761030638035,-500.0,0.00033475,120]
[391957903,1761030638100,-500.0,0.00033475,120]
[391957904,1761030638174,-500.0,0.00033475,120]
[391957906,1761030638406,-269.63331058,0.00033475,120]
[391957907,1761030638466,-500.0,0.00033475,120]
[391957908,1761030638526,-500.0,0.00033475,120]
[391957909,1761030638588,-307.10938801,0.00033475,120]
[391957910,1761030638647,-500.0,0.00033475,120]
[391957911,1761030638705,-500.0,0.00033475,120]
[391957912,1761030638763,-505.31827849,0.00033475,120]
[391957913,1761030638822,-507.74349555,0.00033475,120]
[391957914,1761030638884,-680.23,0.00033475,120]
[391957915,1761030638946,-680.23,0.00033475,120]
[391957916,1761030639013,-680.23,0.00033475,120]
[391957917,1761030639078,-500.0,0.00033475,120]
[391957918,1761030639145,-680.23,0.00033475,120]
[391957919,1761030639216,-680.23,0.00033475,120]
[391957920,1761030639279,-680.23,0.00033475,120]
[391957921,1761030639341,-500.0,0.00033475,120]
[391957922,1761030639398,-500.0,0.00033475,120]
[391957923,1761030639456,-680.23,0.00033475,120]
[391957924,1761030639512,-500.0,0.00033475,120]
[391957925,1761030639572,-500.0,0.00033475,120]
[391957926,1761030639632,-680.23,0.00033475,120]
[391957927,1761030639693,-500.0,0.00033475,120]
[391957928,1761030639751,-680.23,0.00033475,120]
[391957929,1761030639811,-183.50777363,0.00033475,120]
[391957930,1761030639872,-633.45802387,0.00033475,120]
[391957931,1761030639936,-680.23,0.00033475,120]
[391957933,1761030639998,-680.23,0.00033475,120]